bitfinex/quotes_ETHUSD_20250611
["timestamp","ask_amount","ask_price","bid_price","bid_amount"]
[1749667317287,0.7553,2821.7,2820.6,10.0]
[1749667318406,0.7553,2821.7,2820.7,0.7804]
[1749667318620,0.7553,2821.7,2820.8,1.07804]
[1749667319124,10.0,2822.2,2820.9,0.784]
[1749667319425,0.8231,2821.7,2821.3,0.1768]
[1749667319809,13.48244395,2821.7,2821.0,3.935]
[1749667320104,0.1768,2821.4,2821.0,3.935]
[1749667320300,0.1768,2821.4,2820.9,0.9608]
[1749667320494,0.1768,2821.4,2820.9,0.1768]
[1749667320690,0.1768,2821.4,2820.9,0.78072]
[1749667321089,0.1768,2821.4,2820.9,4.1108]
[1749667323426,0.7644,2821.9,2821.0,0.8147]
[1749667323726,0.1768,2821.8,2821.3,0.1768]
[1749667326080,0.1768,2821.8,2821.3,4.1098]
[1749667326284,0.55,2822.4,2821.3,4.1098]
[1749667326285,0.7976,2822.1,2821.3,3.933]
[1749667326485,0.7976,2822.9,2821.8,0.7615]
[1749667326686,0.7976,2822.5,2822.1,0.1768]
[1749667327417,0.1768,2822.6,2822.1,0.1768]
[1749667328627,0.1768,2822.6,2822.1,0.58768]
[1749667328929,0.7644,2823.0,2822.5,0.1768]
[1749667328930,0.9412,2823.0,2822.5,0.1768]
[1749667329132,0.7644,2823.6,2822.6,0.7532]
[1749667329432,0.7644,2824.3,2823.1,13.41254395]
[1749667329592,0.7644,2824.3,2823.2,6.4159344]
[1749667329929,10.7644,2824.3,2823.2,1.3589344]
[1749667330115,0.7644,2824.3,2823.3,5.057]
[1749667331395,12.65934395,2824.0,2823.1,0.7532]
[1749667331595,12.65934395,2823.4,2822.7,4.7378]
[1749667331902,0.7886,2823.6,2822.7,5.3591593]
[1749667332627,12.65934395,2823.5,2822.7,1.4281593]
[1749667332808,0.55,2823.4,2822.3,5.055]
[1749667333130,0.7886,2823.6,2822.3,5.055]
[1749667333697,0.7886,2823.6,2822.4,0.7986]
[1749667333891,0.7886,2823.6,2822.5,0.58536]
[1749667334097,13.20934395,2823.5,2822.5,0.58536]
[1749667334338,0.55,2823.1,2822.4,0.7986]
[1749667334640,0.7886,2823.6,2822.1,5.8536]
[1749667334641,13.46244395,2822.9,2822.1,5.8536]
[1749667334794,13.46244395,2822.9,2822.1,1.9246]
[1749667334995,0.8031,2822.9,2822.2,0.58536]
[1749667335191,0.55,2823.4,2822.2,0.58536]
[1749667335392,10.0,2823.2,2822.2,0.58536]
[1749667335631,10.0,2823.2,2822.3,3.928]
[1749667336001,12.65934395,2822.9,2822.1,0.7986]
[1749667336207,13.20934395,2823.1,2822.1,0.7986]
[1749667336827,0.55,2822.9,2822.1,0.7986]
[1749667337007,0.55,2822.9,2822.0,4.7926]
[1749667338601,13.20934395,2822.9,2822.0,4.7926]
[1749667339331,13.20934395,2822.9,2822.0,5.27186]
[1749667339507,0.1768,2822.6,2822.1,0.1768]
[1749667339708,0.1768,2822.6,2822.1,0.26224028]
[1749667340044,0.7779,2823.4,2822.3,12.65934395]
[1749667340205,0.1768,2823.3,2822.8,0.1768]
[1749667341844,12.65934395,2823.0,2822.9,0.04705555]
[1749667342003,10.55,2823.0,2822.9,0.04705555]
[1749667342204,23.20934395,2823.0,2822.9,0.04705555]
[1749667342600,30.02070708,2823.0,2822.9,0.04705555]
[1749667342857,27.5652748,2823.0,2822.9,0.04705555]
[1749667343059,31.2942748,2823.0,2822.9,0.04705555]
[1749667343222,28.57337803,2823.0,2822.9,0.04705555]
[1749667344326,28.95704718,2823.0,2822.9,0.04705555]
[1749667344826,29.64568653,2823.0,2822.9,0.04705555]
[1749667345027,25.58833194,2823.0,2822.9,0.04705555]
[1749667345650,25.91677379,2823.0,2822.9,0.04705555]
[1749667345859,25.58833194,2823.0,2822.9,0.04705555]
[1749667346360,21.66233194,2823.0,2822.9,0.04705555]
[1749667346567,25.58833194,2823.0,2822.9,0.04705555]
[1749667346866,29.13066279,2823.0,2822.9,0.04705555]
[1749667347103,33.18805885,2823.0,2822.9,0.04705555]
[1749667347229,32.85966279,2823.0,2822.9,0.04705555]
[1749667347425,21.66233194,2823.0,2822.9,0.04705555]
[1749667347661,25.58833194,2823.0,2822.9,0.04705555]
[1749667347976,0.1768,2823.0,2822.9,0.04705555]
[1749667348128,0.1768,2823.2,2822.9,0.04705555]
[1749667348648,0.787,2823.8,2822.9,0.04705555]
[1749667348841,0.1768,2823.5,2822.9,0.04705555]
[1749667349039,0.1768,2823.3,2822.9,0.04705555]
[1749667349439,10.787,2823.8,2822.9,0.04705555]
[1749667349653,0.1768,2823.5,2823.0,0.1768]
[1749667350377,9.93844718,2823.9,2822.8,0.7505]
[1749667350378,0.32847162,2824.3,2822.9,10.8011]
[1749667350527,0.1768,2824.0,2823.4,0.1768]
[1749667350728,0.1768,2824.0,2823.5,0.8011]
[1749667350934,0.1768,2824.3,2823.8,0.1768]
[1749667353155,0.1768,2824.3,2823.5,0.8011]
[1749667353156,0.1768,2823.9,2823.5,0.8011]
[1749667354044,0.1768,2823.9,2823.6,0.05879483]
[1749667355484,0.1768,2824.2,2823.7,0.1768]
[1749667356380,0.1768,2824.2,2823.7,1.0001]
[1749667356549,9.93844718,2824.2,2823.4,0.8233]
[1749667356890,0.1768,2823.9,2823.4,1.0001]
[1749667357064,0.1768,2823.7,2823.4,0.8233]
[1749667358743,0.89878454,2824.2,2823.4,0.8233]
[1749667358951,0.1768,2823.9,2823.4,1.0001]
[1749667360450,9.93844718,2824.0,2823.4,0.8233]
[1749667360652,0.1768,2823.7,2823.4,0.8233]
[1749667361087,0.1768,2823.9,2823.4,1.0001]
[1749667361458,0.55,2823.6,2822.8,0.8173]
[1749667361673,0.1768,2823.2,2822.8,0.8173]
[1749667361990,0.1768,2823.2,2822.7,0.1768]
[1749667364753,0.55,2822.9,2822.2,1.9383]
[1749667364891,9.93844718,2822.6,2821.9,0.8173]
[1749667365240,0.1768,2822.3,2821.8,0.1768]
[1749667365388,0.55,2822.2,2821.5,0.8173]
[1749667365583,0.1768,2822.0,2821.5,0.8173]
[1749667365825,0.1768,2822.0,2821.4,0.1768]
[1749667366190,10.29502638,2822.6,2821.2,0.8057]
[1749667366425,0.1768,2822.1,2821.6,0.1768]
[1749667368102,0.1768,2821.9,2821.4,0.1768]
[1749667369441,0.55,2821.9,2821.2,0.8057]
[1749667369589,0.1768,2821.6,2821.2,0.8057]
[1749667372305,0.1768,2821.6,2821.1,0.1768]
[1749667372505,0.55,2821.1,2820.3,0.798]
[1749667372708,12.65277012,2820.9,2820.3,0.798]
[1749667373205,10.55,2821.1,2820.3,0.798]
[1749667374772,10.55,2821.1,2819.8,0.7536]
[1749667374773,9.94812456,2820.9,2819.8,0.7536]
[1749667374914,9.94812456,2820.9,2819.9,0.46726]
[1749667375616,0.55,2821.3,2820.0,0.7546]
[1749667375827,0.7702,2821.4,2820.0,0.7546]
[1749667376114,9.94812456,2821.8,2820.0,0.7546]
[1749667376115,0.7953,2821.7,2820.0,0.7546]
[1749667376445,10.7953,2821.7,2820.2,10.8038]
[1749667376624,0.55,2821.6,2820.3,1.58448]
[1749667376826,0.55,2821.1,2820.2,0.8038]
[1749667377023,9.94812456,2820.9,2820.2,0.8038]
[1749667377234,9.94812456,2820.6,2819.9,0.8038]
[1749667377669,0.55,2820.8,2819.9,0.8038]
[1749667379068,9.94812456,2820.6,2819.9,0.8038]
[1749667379766,0.55,2820.5,2819.9,0.8038]
[1749667380069,9.94812456,2820.3,2819.9,0.8038]
[1749667380431,9.94812456,2820.0,2819.0,0.7533]
[1749667380737,9.94812456,2820.0,2819.0,5.50235574]
[1749667380938,9.94812456,2820.0,2819.1,10.0]
[1749667381139,9.94812456,2820.0,2819.0,1.58335574]
[1749667381364,9.94812456,2819.7,2819.0,0.7533]
[1749667381573,9.94812456,2819.4,2819.0,0.7533]
[1749667381741,9.94812456,2819.4,2818.8,1.122]
[1749667382456,0.1768,2819.0,2818.5,0.1768]
[1749667382859,9.94812456,2819.1,2818.0,0.7813]
[1749667382860,9.94812456,2818.8,2818.0,0.7813]
[1749667383060,0.831,2819.4,2818.0,0.7813]
[1749667383269,0.1768,2819.4,2818.9,0.1768]
[1749667383461,9.94812456,2819.0,2818.1,0.7826]
[1749667383765,0.1768,2818.7,2818.2,0.1768]
[1749667383961,10.0,2819.2,2818.1,0.7826]
[1749667384273,0.8256,2819.4,2818.1,10.7826]
[1749667384473,9.94812456,2819.6,2818.1,10.7826]
[1749667384474,0.1768,2819.2,2818.7,0.1768]
[1749667384673,0.1768,2819.2,2818.8,0.7644]
[1749667384882,10.8168,2819.7,2818.8,0.7644]
[1749667385041,10.8168,2819.7,2818.9,0.1768]
[1749667385042,0.1768,2819.4,2818.9,0.1768]
[1749667385490,0.1768,2819.4,2819.0,0.48602]
[1749667385802,0.1768,2819.9,2819.3,0.1768]
[1749667385943,0.1768,2819.9,2819.1,0.7644]
[1749667386138,0.1768,2819.9,2819.6,0.1768]
[1749667386383,9.94812456,2820.8,2819.7,0.7644]
[1749667386702,0.1768,2820.8,2819.8,4.0958]
[1749667386982,0.1768,2820.8,2820.3,0.1768]
[1749667388222,0.34814062,2820.8,2820.3,0.1768]
[1749667391147,0.29635376,2821.1,2820.7,0.1768]
[1749667392048,0.29635376,2821.1,2820.8,0.8152]
[1749667392218,0.1768,2821.2,2820.8,0.8152]
[1749667393430,0.55,2821.2,2820.4,0.8152]
[1749667393648,0.1768,2820.9,2820.4,0.992]
[1749667393953,0.7595,2821.5,2820.4,1.9144]
[1749667393954,10.70762456,2821.5,2820.4,1.9144]
[1749667394133,0.8197,2821.8,2820.8,0.992]
[1749667394445,9.94812456,2821.4,2820.8,0.8152]
[1749667394659,0.1768,2821.2,2820.8,0.8152]
[1749667394868,0.1768,2821.2,2820.9,0.05195068]
[1749667395362,0.55,2821.0,2820.9,0.05195068]
[1749667396023,1.354,2821.0,2820.9,0.05195068]
[1749667396408,0.804,2821.0,2820.9,0.05195068]
[1749667396630,0.7804,2821.4,2820.9,0.05195068]
[1749667396831,0.1768,2821.2,2820.9,0.05195068]
[1749667397144,13.916,2822.0,2821.0,0.8203]
[1749667397308,0.1768,2821.6,2821.1,0.1768]
[1749667397511,0.35018558,2822.0,2821.2,0.04210937]
[1749667397817,1.03774783,2823.0,2821.2,0.04210937]
[1749667397818,9.94812456,2822.4,2821.2,0.04210937]
[1749667398125,0.1768,2822.4,2821.8,0.1768]
[1749667398347,0.1768,2822.4,2821.9,0.7986]
[1749667398711,10.301,2823.5,2821.9,0.7986]
[1749667398712,0.1768,2822.7,2822.1,0.1768]
[1749667399323,0.1768,2822.7,2822.2,0.14018948]
[1749667400460,0.1768,2822.4,2822.2,0.14018948]
[1749667403565,0.1768,2822.9,2822.3,0.1768]
[1749667404064,0.1768,2822.9,2822.4,0.0565098]
[1749667405266,1.04109132,2824.6,2822.5,10.8062]
[1749667405267,0.8045,2824.0,2822.5,10.8062]
[1749667405426,0.8045,2824.0,2822.6,1.58927098]
[1749667405627,0.29635376,2823.9,2822.6,1.58927098]
[1749667405928,0.29635376,2823.9,2822.7,0.0565038]
[1749667406861,10.8045,2824.0,2822.7,0.0565038]
[1749667407049,0.55,2823.9,2822.7,0.0565038]
[1749667407414,9.94812456,2823.8,2822.7,0.0565038]
[1749667407640,0.55,2823.7,2822.7,11.30170128]
[1749667408296,0.55,2823.7,2822.7,10.30170128]
[1749667408500,9.94812456,2823.5,2822.6,3.912]
[1749667409004,0.55,2823.9,2822.7,0.7781]
[1749667410097,10.55,2823.7,2822.8,3.911]
[1749667410591,0.8123,2824.3,2822.9,10.0]
[1749667410799,0.8123,2824.3,2823.0,0.7781]
[1749667411157,0.55,2824.0,2823.0,0.7781]
[1749667411498,9.94812456,2823.9,2823.1,3.911]
[1749667411789,9.94812456,2823.6,2823.0,0.7781]
[1749667412989,11.172544,2824.3,2823.2,0.7738]
[1749667412990,0.8123,2824.3,2823.2,0.7738]
[1749667413545,10.0,2824.4,2823.2,0.7738]
[1749667413963,9.94812456,2823.9,2823.2,0.7738]
[1749667414560,9.94812456,2823.3,2822.4,0.7818]
[1749667414962,10.55,2823.5,2822.4,0.7818]
[1749667415185,0.1768,2823.1,2822.5,0.1768]
[1749667415387,0.1768,2823.2,2822.7,0.1768]
[1749667416149,9.94812456,2822.9,2822.4,0.7818]
[1749667416353,0.1768,2822.8,2822.4,0.7818]
[1749667419666,0.1768,2822.8,2821.9,10.0]
[1749667419667,9.94812456,2822.9,2821.9,10.0]
[1749667419872,0.1768,2822.6,2822.1,0.1768]
[1749667420072,0.1768,2822.6,2822.1,1.27269]
[1749667420321,10.0,2823.4,2822.2,0.7821]
[1749667420474,0.1768,2823.1,2822.5,0.1768]
[1749667421094,0.8036,2823.6,2822.1,1.09589]
[1749667421414,9.94812456,2822.9,2822.2,0.826]
[1749667421706,0.1768,2823.2,2822.3,0.192189]
[1749667421859,0.1768,2823.2,2822.2,0.826]
[1749667422562,0.55,2823.5,2822.4,0.826]
[1749667423175,0.8233,2823.9,2822.4,0.826]
[1749667423374,0.18479173,2824.8,2822.7,9.94812456]
[1749667423375,10.77142456,2824.7,2822.7,9.94812456]
[1749667423577,10.92608466,2824.7,2822.8,10.0]
[1749667423775,9.94812456,2824.4,2823.1,0.803]
[1749667423988,9.94812456,2824.4,2823.2,5.02]
[1749667424189,9.94812456,2824.4,2823.1,0.803]
[1749667424392,10.0,2824.6,2823.2,3.907]
[1749667424393,9.94812456,2824.1,2823.2,3.907]
[1749667424556,9.94812456,2824.1,2823.1,0.803]
[1749667424759,9.94812456,2824.1,2823.1,4.71]
[1749667425060,9.94812456,2824.1,2823.2,3.907]
[1749667426578,10.0,2824.3,2823.2,3.907]
[1749667426777,0.18479173,2824.8,2823.4,0.7744]
[1749667427098,10.0,2824.6,2823.4,0.7744]
[1749667427408,10.0,2824.6,2823.5,1.07744]
[1749667428190,0.55,2824.5,2823.5,1.07744]
[1749667428391,1.3563,2824.3,2823.4,0.7744]
[1749667428597,1.3563,2824.3,2823.4,4.6804]
[1749667429612,1.3563,2824.3,2823.4,0.7744]
[1749667429777,9.94812456,2824.1,2823.4,0.7744]
[1749667431614,0.1768,2824.0,2823.5,0.1768]
[1749667432324,9.94812456,2824.4,2823.4,0.7744]
[1749667432325,0.55,2824.4,2823.4,0.7744]
[1749667432529,0.1768,2824.2,2823.7,0.1768]
[1749667432830,14.64662456,2824.7,2823.8,0.1768]
[1749667432831,0.1768,2824.3,2823.8,0.1768]
[1749667433125,0.1768,2824.3,2823.9,0.8071]
[1749667433924,0.1768,2824.3,2823.9,0.00554155]
[1749667436723,0.18479173,2824.8,2823.9,0.00554155]
[1749667436932,0.18479173,2824.8,2823.9,1.02377571]
[1749667437109,0.18479173,2824.8,2824.0,3.903]
[1749667437292,12.63025903,2824.4,2824.0,3.903]
[1749667437822,12.63025903,2824.4,2823.9,0.00554155]
[1749667439101,0.55,2824.3,2823.5,0.714]
[1749667439317,12.63025903,2824.1,2823.5,2.2524]
[1749667439638,0.55,2824.0,2823.5,0.714]
[1749667442647,0.55,2824.0,2823.0,8.572]
[1749667442648,12.63025903,2823.8,2823.2,0.714]
[1749667443417,0.55,2824.0,2823.2,0.714]
[1749667443636,12.63025903,2824.1,2823.2,0.714]
[1749667444516,3.54027436,2824.7,2823.2,0.714]
[1749667444517,1.04657968,2825.8,2823.8,0.55]
[1749667444717,2.01615895,2826.5,2823.8,0.55]
[1749667444718,0.8018,2826.5,2825.2,10.714]
[1749667444919,0.8018,2826.5,2825.3,3.902]
[1749667444920,0.17134062,2826.4,2825.3,3.902]
[1749667445314,12.63025903,2826.3,2825.4,0.0289855]
[1749667445551,0.17134062,2826.4,2825.4,0.0289855]
[1749667445552,12.63025903,2826.0,2825.4,0.0289855]
[1749667445725,12.63025903,2825.7,2825.4,0.0289855]
[1749667446050,0.55,2825.6,2825.4,0.0289855]
[1749667446761,1.663,2825.7,2825.4,0.0289855]
[1749667447117,0.17134062,2826.0,2825.4,0.0289855]
[1749667447319,0.1768,2825.9,2825.5,4.615]
[1749667447521,12.63025903,2826.3,2825.5,4.615]
[1749667447719,0.1768,2825.7,2825.5,4.615]
[1749667447948,0.7876,2826.4,2825.5,0.714]
[1749667448150,0.1768,2826.1,2825.6,0.1768]
[1749667448347,0.1768,2826.1,2825.6,4.0778]
[1749667448551,0.1768,2826.1,2825.6,0.1768]
[1749667448751,0.1768,2826.1,2825.6,4.0778]
[1749667449074,0.1768,2826.1,2825.6,0.1768]
[1749667449355,0.1768,2826.1,2825.6,4.0778]
[1749667449722,0.1768,2826.1,2825.6,0.1768]
[1749667449923,0.1768,2826.1,2825.6,4.0778]
[1749667450365,0.1768,2826.1,2825.7,3.901]
[1749667450569,0.1768,2826.2,2825.8,3.901]
[1749667450773,0.1768,2826.2,2825.7,0.1768]
[1749667451135,0.1768,2826.2,2825.8,3.901]
[1749667451639,0.1768,2826.2,2825.8,3.9]
[1749667452056,0.34587091,2827.3,2825.8,4.614]
[1749667452257,2.78453287,2828.9,2825.8,4.614]
[1749667452258,0.29635376,2827.2,2826.9,9.90991725]
[1749667452466,0.29635376,2827.2,2825.9,1.99768]
[1749667452663,0.29635376,2827.2,2826.1,11.109]
[1749667452885,0.29635376,2827.2,2826.0,1.19075972]
[1749667453055,0.804,2827.7,2826.3,10.0]
[1749667453360,0.804,2827.7,2826.7,0.1768]
[1749667453572,0.1768,2827.2,2826.7,0.1768]
[1749667453772,0.804,2827.7,2826.7,1.01768]
[1749667453973,0.1768,2827.4,2826.9,0.1768]
[1749667454492,0.1768,2827.9,2827.3,0.1768]
[1749667455162,0.55,2828.0,2827.2,3.912]
[1749667455389,0.32016581,2827.6,2827.1,0.1768]
[1749667455686,0.14336581,2827.6,2827.0,4.626]
[1749667455894,0.14336581,2827.6,2827.4,0.1768]
[1749667456472,0.14336581,2827.6,2827.0,5.0886]
[1749667456794,0.14336581,2827.6,2827.5,0.1768]
[1749667457163,0.14336581,2827.6,2827.0,1.1766]
[1749667457366,0.14336581,2827.6,2827.5,4.0888]
[1749667457757,0.14336581,2827.6,2827.5,0.1768]
[1749667457954,0.14336581,2827.6,2827.0,0.714]
[1749667457955,0.14336581,2827.6,2827.4,0.1768]
[1749667458593,0.14336581,2827.6,2827.0,0.714]
[1749667458888,0.14336581,2827.6,2827.2,0.1768]
[1749667459292,0.14336581,2827.6,2826.4,1.108]
[1749667459293,0.55,2827.5,2826.2,0.714]
[1749667459590,0.55,2827.5,2826.9,0.1768]
[1749667459591,0.1768,2827.4,2826.9,0.1768]
[1749667460791,1.3583,2827.5,2826.5,3.91]
[1749667460792,0.8083,2827.5,2826.5,3.91]
[1749667461116,0.8083,2827.5,2826.2,0.714]
[1749667461117,0.1768,2826.9,2826.4,0.1768]
[1749667461263,0.1768,2826.9,2826.7,10.0]
[1749667461597,0.1768,2826.9,2826.4,0.1768]
[1749667461598,0.1768,2826.9,2826.4,10.1768]
[1749667462580,0.1768,2826.9,2826.4,11.65658]
[1749667463376,0.1768,2826.9,2826.4,5.55858]
[1749667463663,10.45991725,2827.3,2826.3,3.901]
[1749667463819,0.1768,2826.7,2826.2,0.1768]
[1749667464158,0.1768,2826.7,2826.2,4.0778]
[1749667464361,0.55,2826.6,2825.9,1.12168]
[1749667464568,0.55,2826.6,2826.1,3.9]
[1749667464569,0.1768,2826.5,2826.1,3.9]
[1749667465066,3.53707947,2827.2,2826.1,3.9]
[1749667465067,0.8296,2827.3,2826.2,10.0]
[1749667466524,0.8296,2827.3,2826.3,0.714]
[1749667466760,0.8296,2827.3,2826.5,10.0]
[1749667467065,0.8296,2827.3,2826.6,5.29]
[1749667467228,0.8296,2827.3,2826.6,3.9]
[1749667468759,0.8296,2827.3,2826.3,0.714]
[1749667468958,0.14336581,2827.6,2827.3,10.0]
[1749667469170,0.14336581,2827.6,2827.5,10.0]
[1749667469354,0.14336581,2827.6,2827.5,11.3897]
[1749667469558,0.14336581,2827.6,2827.5,12.1037]
[1749667471067,0.14336581,2827.6,2827.5,2.1037]
[1749667471270,0.14336581,2827.6,2827.5,4.636]
[1749667472257,0.14336581,2827.6,2827.5,0.714]
[1749667472536,0.14336581,2827.6,2827.5,4.629]
[1749667474264,0.14336581,2827.6,2827.5,14.629]
[1749667474433,0.14336581,2827.6,2827.5,14.623]
[1749667474635,0.14336581,2827.6,2827.5,16.1207113]
[1749667475031,0.14336581,2827.6,2827.5,12.3885113]
[1749667475237,0.14336581,2827.6,2827.5,13.907]
[1749667475970,0.14336581,2827.6,2827.3,10.0]
[1749667476168,0.14336581,2827.6,2827.3,3.904]
[1749667476776,0.14336581,2827.6,2827.4,3.904]
[1749667477983,0.14336581,2827.6,2827.2,0.714]
[1749667478150,0.14336581,2827.6,2827.3,3.903]
[1749667479272,0.14336581,2827.6,2827.3,4.3647]
[1749667480452,0.14336581,2827.6,2827.4,3.896]
[1749667481279,0.14336581,2827.6,2826.8,10.0]
[1749667481474,0.14336581,2827.6,2826.9,3.896]
[1749667481846,0.14336581,2827.6,2827.0,3.896]
[1749667482048,0.14336581,2827.6,2826.8,0.714]
[1749667482872,0.14336581,2827.6,2826.9,3.896]
[1749667483079,0.14336581,2827.6,2826.8,0.714]
[1749667483281,0.14336581,2827.6,2826.9,3.896]
[1749667483991,1.3287,2827.5,2825.9,1.07282504]
[1749667484287,1.3287,2827.5,2826.0,3.896]
[1749667484288,0.55,2827.4,2826.0,3.896]
[1749667484979,0.55,2827.2,2826.0,3.896]
[1749667485302,0.1768,2827.0,2826.5,0.1768]
[1749667485888,0.8183,2827.3,2825.9,0.714]
[1749667485889,0.8183,2826.8,2825.9,0.714]
[1749667486190,0.1768,2826.5,2826.0,0.1768]
[1749667486492,0.1768,2826.5,2826.0,0.58408]
[1749667486714,0.1768,2826.5,2826.0,0.1768]
[1749667489083,0.1768,2826.5,2825.9,3.896]
[1749667489084,0.1768,2826.7,2826.2,0.1768]
[1749667489274,0.1768,2826.7,2826.2,4.0738]
[1749667490949,0.1768,2826.7,2826.6,3.53781928]
[1749667491148,0.14336581,2827.6,2826.6,10.60784588]
[1749667491399,0.14336581,2827.6,2826.7,10.0]
[1749667491551,0.14336581,2827.6,2826.8,3.902]
[1749667495289,0.14336581,2827.6,2827.0,12.59464304]
[1749667495486,0.14336581,2827.6,2827.1,1.2594643]
[1749667496578,0.14336581,2827.6,2827.2,3.896]
[1749667496886,0.14336581,2827.6,2827.3,3.896]
[1749667498891,0.8289,2827.5,2827.0,3.896]
[1749667499293,0.8289,2827.5,2826.6,0.714]
[1749667499464,0.8289,2827.5,2826.7,3.896]
[1749667499668,0.55,2827.4,2826.3,1.12138]
[1749667499991,0.55,2827.4,2826.4,3.896]
[1749667500197,0.55,2827.4,2826.3,0.714]
[1749667500363,0.8289,2827.5,2826.3,0.714]
[1749667500364,0.55,2827.0,2826.3,3.896]
[1749667501174,0.1768,2826.8,2826.3,4.0728]
[1749667501379,0.1768,2826.8,2826.3,4.48008]
[1749667502222,0.8255,2827.1,2826.3,4.30328]
[1749667502512,0.55,2827.0,2826.6,0.1768]
[1749667502719,0.55,2827.0,2826.3,0.40728]
[1749667502720,0.1768,2826.8,2826.4,3.896]
[1749667503884,0.8276,2827.5,2826.7,13.30864304]
[1749667504085,0.8276,2827.5,2826.8,1.3308643]
[1749667504283,0.8276,2827.5,2827.2,0.1768]
[1749667504507,0.8276,2827.5,2827.2,4.0728]
[1749667504712,0.8276,2827.5,2827.2,0.1768]
[1749667504923,0.1768,2827.4,2827.0,3.896]
[1749667505212,0.1768,2827.4,2826.9,0.1768]
[1749667505583,0.32016581,2827.6,2827.1,0.1768]
[1749667505782,0.14336581,2827.6,2827.0,3.896]
[1749667506022,0.1768,2827.4,2827.0,3.896]
[1749667506241,0.1768,2827.4,2826.9,0.58408]
[1749667506242,0.7926,2827.3,2826.9,0.1768]
[1749667506382,0.7926,2827.3,2826.9,4.0728]
[1749667507032,0.7926,2827.3,2826.9,0.1768]
[1749667507828,0.55,2827.2,2826.2,0.60156303]
[1749667508033,0.55,2827.2,2826.6,0.1768]
[1749667508034,0.1768,2827.1,2826.6,0.1768]
[1749667508184,0.7799,2826.9,2826.3,3.896]
[1749667508386,0.55,2826.8,2826.4,0.1768]
[1749667508640,0.55,2826.8,2826.2,3.896]
[1749667508787,0.1768,2826.6,2826.2,3.896]
[1749667509138,0.1768,2826.6,2826.2,4.30328]
[1749667510522,0.7799,2826.9,2826.2,0.40728]
[1749667510695,0.7799,2826.9,2826.2,3.896]
[1749667510904,0.7799,2826.9,2826.1,0.1768]
[1749667511111,0.7799,2826.9,2826.2,3.896]
[1749667511595,0.7799,2826.9,2825.6,10.714]
[1749667511810,0.7799,2826.9,2826.0,0.714]
[1749667512033,0.7798,2827.2,2826.2,10.0]
[1749667512589,0.7798,2827.2,2826.3,0.714]
[1749667512790,0.7798,2827.2,2826.5,10.0]
[1749667513826,0.7678,2827.5,2826.5,10.0]
[1749667514730,0.7678,2827.5,2826.6,3.896]
[1749667514926,0.7678,2827.5,2826.7,0.3896]
[1749667516198,0.7678,2827.5,2826.8,3.896]
[1749667516727,0.7678,2827.5,2826.7,0.3896]
[1749667516935,0.55,2827.4,2826.3,0.714]
[1749667517119,0.55,2827.4,2826.4,3.896]
[1749667517799,0.55,2827.4,2826.5,3.896]
[1749667518197,0.55,2827.4,2826.3,0.714]
[1749667518397,0.55,2827.4,2826.4,3.896]
[1749667518638,0.55,2827.4,2826.5,0.461]
[1749667518820,0.7678,2827.5,2826.5,0.461]
[1749667519025,0.7678,2827.5,2826.6,10.0]
[1749667519210,0.7678,2827.5,2826.7,0.714]
[1749667519422,0.14336581,2827.6,2826.9,10.0]
[1749667519625,0.14336581,2827.6,2827.1,10.0]
[1749667520315,0.14336581,2827.6,2827.3,10.0]
[1749667520515,0.14336581,2827.6,2827.5,0.1768]
[1749667521548,0.14336581,2827.6,2827.5,14.0718]
[1749667521705,0.14336581,2827.6,2827.5,14.7858]
[1749667521911,0.14336581,2827.6,2827.5,17.25445974]
[1749667522409,0.14336581,2827.6,2827.5,13.35945974]
[1749667522607,0.14336581,2827.6,2827.5,18.36245974]
[1749667523805,0.14336581,2827.6,2827.5,18.36145974]
[1749667524228,0.14336581,2827.6,2827.5,28.2622571]
[1749667525341,0.14336581,2827.6,2827.5,28.6105998]
[1749667525614,0.14336581,2827.6,2827.5,13.70780244]
[1749667525814,0.14336581,2827.6,2827.5,15.1341427]
[1749667526017,0.14336581,2827.6,2827.5,10.8908]
[1749667526244,0.93156581,2827.6,2826.6,0.35003814]
[1749667526439,0.7882,2827.5,2826.3,0.714]
[1749667526841,0.7882,2826.7,2825.6,0.714]
[1749667527149,0.55,2826.6,2825.7,3.894]
[1749667527314,0.7882,2826.7,2825.8,10.0]
[1749667527315,0.965,2826.7,2825.8,10.0]
[1749667527651,0.965,2826.7,2825.3,0.48826694]
[1749667527652,0.8229,2826.4,2826.0,0.1768]
[1749667527856,0.8229,2826.4,2825.2,2.42033]
[1749667527857,0.1768,2826.3,2825.7,3.894]
[1749667528173,0.1768,2826.3,2825.8,0.1768]
[1749667529056,0.8229,2826.4,2825.9,3.894]
[1749667529226,0.8229,2826.4,2826.1,0.1768]
[1749667530538,0.7862,2826.9,2826.0,3.894]
[1749667530726,0.963,2826.9,2826.3,0.1768]
[1749667530917,0.963,2826.9,2826.4,0.1768]
[1749667533457,0.963,2826.9,2826.1,10.0]
[1749667533458,0.7862,2826.9,2826.1,10.0]
[1749667533771,0.7862,2826.9,2826.8,0.1768]
[1749667533951,0.82,2827.3,2826.8,0.1768]
[1749667534976,0.82,2827.3,2826.8,10.1768]
[1749667535170,0.82,2827.3,2826.8,11.58398]
[1749667535371,0.7884,2826.9,2826.2,3.894]
[1749667535550,0.7884,2826.9,2826.3,10.0]
[1749667535974,0.7884,2826.9,2826.2,3.894]
[1749667536478,0.55,2826.8,2825.6,0.714]